fUSD/lending_fUSD_20260612
["ID","MTS","AMOUNT","RATE_DAILY","PERIOD"]
[424857663,1781208642000,-159.0,0.0003216,30]
[424857660,1781208642000,-308.0,0.0003216,30]
[424857664,1781208642000,-280.0,0.0003216,30]
[424857740,1781208643000,-350.0,0.00033477,120]
[424857738,1781208643000,-1570.0,0.00033425,30]
[424857737,1781208643000,-6052.0,0.00033416,10]
[424857741,1781208643000,-350.0,0.00033477,120]
[424857734,1781208643000,-4055.67,0.00033203,120]
[424857733,1781208643000,-479.029,0.00033177,120]
[424857732,1781208643000,-171.0,0.00033161,30]
[424857736,1781208643000,-150.0,0.00033416,3]
[424857730,1781208643000,-472.0,0.00033161,30]
[424857739,1781208643000,-150.334737,0.00033474,2]
[424857731,1781208643000,-159.0,0.00033161,30]
[424857742,1781208643000,-215.0,0.00033477,120]
[424857751,1781208643000,-176.91354679,0.000339,120]
[424857743,1781208643000,-487.49923,0.00033477,120]
[424857752,1781208643000,-575.88650892,0.000339,120]
[424857753,1781208643000,-325.74515492,0.000339,120]
[424857745,1781208643000,-2292.0,0.0003352,2]
[424857747,1781208643000,-152.5314,0.00033663,2]
[424857750,1781208643000,-500.0,0.00033842,60]
[424857744,1781208643000,-2269.0,0.0003352,2]
[424857746,1781208643000,-532.0,0.00033657,16]
[424857727,1781208643000,-280.0,0.0003316,30]
[424857749,1781208643000,-699.35126,0.00033777,120]
[424857735,1781208643000,-356.46,0.00033408,7]
[424857725,1781208643000,-155.0,0.0003316,30]
[424857711,1781208643000,-168.81130198,0.00033,120]
[424857726,1781208643000,-159.0,0.0003316,30]
[424857748,1781208643000,-154.0,0.00033777,120]
[424857704,1781208643000,-542.19498565,0.00033,120]
[424857706,1781208643000,-173.69818157,0.00033,120]
[424857703,1781208643000,-190.70801846,0.00033,120]
[424857702,1781208643000,-160.76412736,0.00033,120]
[424857707,1781208643000,-187.09864149,0.00033,120]
[424857710,1781208643000,-173.35236373,0.00033,120]
[424857715,1781208643000,-3556.0,0.00033024,2]
[424857716,1781208643000,-1358.0,0.00033024,2]
[424857709,1781208643000,-489.88218411,0.00033,120]
[424857708,1781208643000,-428.30219716,0.00033,120]
[424857712,1781208643000,-5189.999999,0.00033,30]
[424857713,1781208643000,-160.0,0.00033,120]
[424857717,1781208643000,-1274.0,0.00033024,2]
[424857718,1781208643000,-382.0,0.00033024,2]
[424857714,1781208643000,-207.2723861,0.00033,120]
[424857729,1781208643000,-452.0,0.0003316,30]
[424857720,1781208643000,-532.0,0.0003303,16]
[424857722,1781208643000,-500.0,0.00033123,120]
[424857721,1781208643000,-4104.50670373,0.00033034,2]
[424857719,1781208643000,-1227.0,0.00033024,2]
[424857723,1781208643000,-308.0,0.0003316,30]
[424857724,1781208643000,-158.0,0.0003316,30]
[424857728,1781208643000,-151.0,0.0003316,30]
[424857754,1781208643000,-542.19498565,0.000339,120]
[424857759,1781208643000,-1570.0,0.00033973,30]
[424857756,1781208643000,-428.30219716,0.000339,120]
[424857786,1781208643000,-300.0,0.00034488,2]
[424857788,1781208643000,-300.0,0.00034488,2]
[424857787,1781208643000,-300.0,0.00034488,2]
[424857789,1781208643000,-300.0,0.00034488,2]
[424857790,1781208643000,-301.88283697,0.00034488,2]
[424857791,1781208643000,-300.0,0.00034488,2]
[424857792,1781208643000,-300.0,0.00034488,2]
[424857794,1781208643000,-300.0,0.00034488,2]
[424857793,1781208643000,-300.0,0.00034488,2]
[424857795,1781208643000,-300.0,0.00034488,2]
[424857797,1781208643000,-300.0,0.00034488,2]
[424857785,1781208643000,-310.59667688,0.00034488,2]
[424857802,1781208643000,-535.71068605,0.00034488,2]
[424857801,1781208643000,-300.0,0.00034488,2]
[424857799,1781208643000,-300.0,0.00034488,2]
[424857800,1781208643000,-300.0,0.00034488,2]
[424857798,1781208643000,-300.0,0.00034488,2]
[424857806,1781208643000,-1803.5984271,0.00034488,2]
[424857804,1781208643000,-300.0,0.00034488,2]
[424857805,1781208643000,-300.91514516,0.00034488,2]
[424857807,1781208643000,-300.7674755,0.00034488,2]
[424857808,1781208643000,-300.0,0.00034488,2]
[424857755,1781208643000,-187.09864149,0.000339,120]
[424857809,1781208643000,-300.0,0.00034488,2]
[424857803,1781208643000,-320.52506455,0.00034488,2]
[424857784,1781208643000,-300.0,0.00034488,2]
[424857796,1781208643000,-300.0,0.00034488,2]
[424857782,1781208643000,-310.630554,0.00034378,120]
[424857762,1781208643000,-177.02259997,0.00034,30]
[424857781,1781208643000,-532.0,0.00034283,17]
[424857763,1781208643000,-177.02259997,0.00034,60]
[424857758,1781208643000,-173.35236373,0.000339,120]
[424857757,1781208643000,-489.88218411,0.000339,120]
[424857760,1781208643000,-387.56306584,0.0003398,30]
[424857761,1781208643000,-177.02259997,0.00034,30]
[424857764,1781208643000,-177.02259997,0.00034,60]
[424857767,1781208643000,-150.0,0.00034002,2]
[424857765,1781208643000,-1000.0,0.00034,2]
[424857777,1781208643000,-197.2,0.00034182,7]
[424857768,1781208643000,-463.54778,0.00034078,120]
[424857776,1781208643000,-472.0,0.00034161,30]
[424857774,1781208643000,-151.0,0.0003416,30]
[424857779,1781208643000,-243.84,0.00034246,30]
[424857769,1781208643000,-308.0,0.0003416,30]
[424857780,1781208643000,-4055.67,0.00034271,120]
[424857778,1781208643000,-346.26,0.00034238,7]
[424857771,1781208643000,-155.0,0.0003416,30]
[424857783,1781208643000,-7082.734687,0.0003442,2]
[424857772,1781208643000,-159.0,0.0003416,30]
[424857770,1781208643000,-166.0,0.0003416,30]
[424857775,1781208643000,-452.0,0.0003416,30]
[424857773,1781208643000,-280.0,0.0003416,30]
[424857847,1781208644000,-1001.0,0.00034849,120]
[424857837,1781208644000,-2062.5493,0.00034526,2]
[424857839,1781208644000,-168.08,0.0003459,30]
[424857840,1781208644000,-1406.28129704,0.000346,60]
[424857845,1781208644000,-2062.5493,0.00034773,2]
[424857843,1781208644000,-2000.00000099,0.00034748,5]
[424857846,1781208644000,-1500.0,0.00034795,2]
[424857841,1781208644000,-2062.5493,0.0003465,2]
[424857842,1781208644000,-150.531159,0.00034678,120]
[424857849,1781208644000,-2062.5493,0.00034896,2]
[424857860,1781208644000,-400.0,0.0003497,2]
[424857856,1781208644000,-7565.0,0.00034949,10]
[424857855,1781208644000,-150.0,0.00034949,3]
[424857852,1781208644000,-1500.0,0.000349,7]
[424857850,1781208644000,-286.0,0.000349,120]
[424857848,1781208644000,-2259.5408,0.00034871,2]
[424857854,1781208644000,-532.0,0.00034909,17]
[424857853,1781208644000,-200.0,0.000349,10]
[424857851,1781208644000,-769.55233372,0.000349,90]
[424857859,1781208644000,-300.0,0.0003497,2]
[424857861,1781208644000,-400.0,0.0003497,2]
[424857838,1781208644000,-1551.6614,0.00034526,2]
[424857857,1781208644000,-400.0,0.00034952,2]
[424857833,1781208644000,-324.7207037,0.00034491,60]
[424857810,1781208644000,-310.59667688,0.00034488,2]
[424857827,1781208644000,-300.0,0.00034488,2]
[424857862,1781208644000,-400.0,0.0003497,2]
[424857814,1781208644000,-300.0,0.00034488,2]
[424857812,1781208644000,-300.0,0.00034488,2]
[424857813,1781208644000,-1345.05845532,0.00034488,2]
[424857811,1781208644000,-300.0,0.00034488,2]
[424857816,1781208644000,-300.0,0.00034488,2]
[424857815,1781208644000,-300.0,0.00034488,2]
[424857819,1781208644000,-583.05784622,0.00034488,2]
[424857823,1781208644000,-300.0,0.00034488,2]
[424857825,1781208644000,-300.0,0.00034488,2]
[424857818,1781208644000,-599.89548568,0.00034488,2]
[424857836,1781208644000,-2259.5408,0.00034526,2]
[424857824,1781208644000,-300.0,0.00034488,2]
[424857817,1781208644000,-500.97643086,0.00034488,2]
[424857821,1781208644000,-453.35117681,0.00034488,2]
[424857820,1781208644000,-300.0,0.00034488,2]
[424857826,1781208644000,-300.0,0.00034488,2]
[424857829,1781208644000,-300.0,0.00034488,2]
[424857835,1781208644000,-1570.0,0.00034521,30]
[424857831,1781208644000,-355.4795695,0.00034491,60]
[424857830,1781208644000,-300.0,0.00034488,2]
[424857828,1781208644000,-300.0,0.00034488,2]
[424857834,1781208644000,-227.8717723,0.00034491,60]
[424857832,1781208644000,-186.6763673,0.00034491,60]
[424857822,1781208644000,-300.0,0.00034488,2]
[424857858,1781208644000,-400.0,0.00034952,2]
[424857844,1781208644000,-64767.31559185,0.00034765,120]
[424857868,1781208644000,-150.0,0.00035,7]
[424857893,1781208644000,-1700.91653113,0.00035,7]
[424857894,1781208644000,-934.82619669,0.00035,120]
[424857896,1781208644000,-501.91432577,0.00035,120]
[424857895,1781208644000,-58576.22920144,0.00035,2]
[424857897,1781208644000,-300.0,0.00035,10]
[424857898,1781208644000,-200.0,0.00035,120]
[424857899,1781208644000,-2062.5493,0.00035019,2]
[424857900,1781208644000,-420.2,0.0003503,62]
[424857901,1781208644000,-1570.0,0.00035068,30]
[424857902,1781208644000,-334.85,0.00035069,7]
[424857905,1781208644000,-155.0,0.0003516,30]
[424857891,1781208644000,-6561.3071112,0.00035,2]
[424857912,1781208644000,-1662.0,0.00035169,5]
[424857910,1781208644000,-472.0,0.00035161,30]
[424857909,1781208644000,-452.0,0.0003516,30]
[424857906,1781208644000,-159.0,0.0003516,30]
[424857911,1781208644000,-2072.0,0.00035169,5]
[424857908,1781208644000,-151.0,0.0003516,30]
[424857907,1781208644000,-280.0,0.0003516,30]
[424857913,1781208644000,-225.14,0.00035173,2]
[424857914,1781208644000,-10007.35187955,0.000352,30]
[424857915,1781208644000,-4055.67,0.00035203,120]
[424857916,1781208644000,-2259.5408,0.00035217,2]
[424857863,1781208644000,-500.0,0.00034978,120]
[424857903,1781208644000,-2062.5493,0.00035143,2]
[424857892,1781208644000,-5283.66008393,0.00035,7]
[424857904,1781208644000,-308.0,0.0003516,30]
[424857887,1781208644000,-3000.06487364,0.00035,30]
[424857885,1781208644000,-2800.09765686,0.00035,10]
[424857866,1781208644000,-575.88650892,0.00035,120]
[424857867,1781208644000,-150.09701702,0.00035,7]
[424857864,1781208644000,-150.531159,0.00034978,120]
[424857865,1781208644000,-915.96730151,0.0003499,30]
[424857869,1781208644000,-800.0,0.00035,7]
[424857870,1781208644000,-325.74515492,0.00035,120]
[424857873,1781208644000,-489.88218411,0.00035,120]
[424857871,1781208644000,-542.19498565,0.00035,120]
[424857872,1781208644000,-428.30219716,0.00035,120]
[424857878,1781208644000,-537997.2820884,0.00035,7]
[424857877,1781208644000,-452.69893431,0.00035,60]
[424857874,1781208644000,-173.35236373,0.00035,120]
[424857882,1781208644000,-340000.0,0.00035,4]
[424857886,1781208644000,-526.0,0.00035,5]
[424857876,1781208644000,-22262.08601087,0.00035,30]
[424857883,1781208644000,-2571.5060031,0.00035,2]
[424857884,1781208644000,-5489.39497924,0.00035,120]
[424857889,1781208644000,-150.0,0.00035,60]
[424857890,1781208644000,-276.65911688,0.00035,120]
[424857888,1781208644000,-44466.17,0.00035,15]
[424857881,1781208644000,-33311.28536358,0.00035,30]
[424857879,1781208644000,-10211.72305224,0.00035,30]
[424857875,1781208644000,-506.0,0.00035,120]
[424857880,1781208644000,-43125.83511624,0.00035,5]
[424857936,1781208645000,-248.84,0.00035479,2]
[424857933,1781208645000,-420.2,0.0003546,88]
[424857930,1781208645000,-6825.4210676,0.00035395,30]
[424857932,1781208645000,-100000.0,0.00035455,120]
[424857946,1781208645000,-151.0,0.00035481,7]
[424857939,1781208645000,-151.0,0.0003548,7]
[424857935,1781208645000,-400.0,0.0003547,2]
[424857943,1781208645000,-151.0,0.00035481,7]
[424857944,1781208645000,-151.0,0.00035481,7]
[424857928,1781208645000,-3133.5753361,0.00035392,2]
[424857945,1781208645000,-151.0,0.00035481,7]
[424857931,1781208645000,-286.0,0.000354,120]
[424857917,1781208645000,-2062.5493,0.00035266,2]
[424857927,1781208645000,-374864.4352936,0.00035392,2]
[424857934,1781208645000,-300.0,0.0003547,2]
[424857929,1781208645000,-554.380233,0.00035392,2]
[424857925,1781208645000,-2062.5493,0.00035389,2]
[424857926,1781208645000,-1551.6614,0.00035389,2]
[424857923,1781208645000,-1489.54662402,0.00035384,2]
[424857920,1781208645000,-2500.0,0.000353,14]
[424857918,1781208645000,-1000.0,0.00035275,120]
[424857919,1781208645000,-464.802826,0.00035279,120]
[424857922,1781208645000,-4104.50670373,0.00035381,2]
[424857921,1781208645000,-2957.0,0.00035317,54]
[424857937,1781208645000,-151.0,0.0003548,7]
[424857924,1781208645000,-10000.0,0.00035385,2]
[424857938,1781208645000,-151.0,0.0003548,7]
[424857960,1781208645000,-489.823937,0.00035481,7]
[424857942,1781208645000,-151.0,0.0003548,7]
[424857971,1781208645000,-161275.17943966,0.00035481,30]
[424857970,1781208645000,-194240.08949065,0.00035481,7]
[424857940,1781208645000,-151.0,0.0003548,7]
[424857969,1781208645000,-9096.69712251,0.00035481,31]
[424857966,1781208645000,-489.823937,0.00035481,7]
[424857965,1781208645000,-151.0,0.00035481,7]
[424857964,1781208645000,-176.165138,0.00035481,7]
[424857961,1781208645000,-151.0,0.00035481,7]
[424857962,1781208645000,-151.0,0.00035481,7]
[424857963,1781208645000,-489.823937,0.00035481,7]
[424857968,1781208645000,-247.593898,0.00035481,7]
[424857959,1781208645000,-151.0,0.00035481,7]
[424857967,1781208645000,-217.121269,0.00035481,7]
[424857950,1781208645000,-1161.489255,0.00035481,7]
[424857941,1781208645000,-256.783317,0.0003548,7]
[424857947,1781208645000,-1161.489255,0.00035481,7]
[424857948,1781208645000,-1161.489255,0.00035481,7]
[424857951,1781208645000,-151.0,0.00035481,7]
[424857958,1781208645000,-489.823937,0.00035481,7]
[424857949,1781208645000,-1161.489255,0.00035481,7]
[424857955,1781208645000,-1051.712669,0.00035481,7]
[424857956,1781208645000,-1051.712669,0.00035481,7]
[424857957,1781208645000,-1051.712669,0.00035481,7]
[424857952,1781208645000,-151.0,0.00035481,7]
[424857953,1781208645000,-151.0,0.00035481,7]
[424857954,1781208645000,-1051.712669,0.00035481,7]
[424857974,1781208646000,-852.0,0.00027397,10]
[424857973,1781208646000,-1190.11875042,0.00035481,30]
[424857975,1781208646000,-300.0,0.00034488,2]
[424857976,1781208646000,-1134.0,0.00035,7]
[424857978,1781208646000,-247.593898,0.00035481,7]
[424857983,1781208646000,-6.02583197,0.00027611,30]
[424857979,1781208646000,-2569157.33628142,0.00035481,30]
[424857981,1781208646000,-221.65,0.0002755,30]
[424857982,1781208646000,-213.9,0.0002758,7]
[424857980,1781208646000,-213.9,0.0002755,2]
[424857977,1781208646000,-217.121269,0.00035481,7]
[424857991,1781208647000,-221.65,0.00028033,30]
[424857990,1781208647000,-221.65,0.00027872,2]
[424857992,1781208647000,-221.65,0.00028194,7]
[424857989,1781208647000,-213.9,0.00027733,2]
[424857994,1781208647000,-855.0,0.0003016,30]
[424857988,1781208647000,-221.65,0.00027711,7]
[424857986,1781208647000,-213.9,0.00027672,7]
[424857984,1781208647000,-207.87416803,0.00027611,30]
[424857985,1781208647000,-213.9,0.00027641,2]
[424857987,1781208647000,-213.9,0.00027702,30]
[424857993,1781208647000,-221.65,0.00028355,2]
[424858000,1781208647000,-217.121269,0.00035481,7]
[424857995,1781208647000,-300.0,0.00034488,2]
[424857996,1781208647000,-300.0,0.00034488,2]
[424858007,1781208647000,-23975.23962325,0.00035481,30]
[424858006,1781208647000,-2366.63690629,0.00035481,30]
[424858004,1781208647000,-2285.13234041,0.00035481,30]
[424858001,1781208647000,-12270.4568491,0.00035481,30]
[424858005,1781208647000,-778.80052956,0.00035481,30]
[424858003,1781208647000,-3714.64229666,0.00035481,30]
[424857999,1781208647000,-247.593898,0.00035481,7]
[424857998,1781208647000,-217.121269,0.00035481,7]
[424857997,1781208647000,-300.0,0.00034488,2]
[424858002,1781208647000,-500.0,0.00035481,30]
[424858015,1781208648000,-213.9,0.00027794,30]
[424858021,1781208648000,-213.9,0.00027946,7]
[424858019,1781208648000,-135.00350698,0.00027916,2]
[424858017,1781208648000,-213.9,0.00027855,7]
[424858016,1781208648000,-213.9,0.00027824,2]
[424858014,1781208648000,-213.9,0.00027763,7]
[424858012,1781208648000,-327.022,0.00025363,2]
[424858009,1781208648000,-35.722,0.00024886,7]
[424858008,1781208648000,-320.85,0.00024658,2]
[424858011,1781208648000,-320.85,0.00025115,30]
[424858010,1781208648000,-285.128,0.00024886,7]
[424858024,1781208648000,-213.9,0.00028038,7]
[424858013,1781208648000,-91.978,0.00025363,2]
[424858027,1781208648000,-213.93,0.0002813,7]
[424858018,1781208648000,-213.9,0.00027885,30]
[424858023,1781208648000,-213.9,0.00028007,2]
[424858026,1781208648000,-213.9,0.00028099,2]
[424858032,1781208648000,-221.7,0.00029,30]
[424858031,1781208648000,-221.65,0.00028838,2]
[424858035,1781208648000,-300.0,0.00034488,2]
[424858033,1781208648000,-419.0,0.00031363,2]
[424858037,1781208648000,-300.0,0.00034488,2]
[424858034,1781208648000,-151.0,0.00031937,2]
[424858036,1781208648000,-300.0,0.00034488,2]
[424858029,1781208648000,-221.65,0.00028516,30]
[424858028,1781208648000,-419.0,0.00028363,2]
[424858038,1781208648000,-287.83236905,0.00034755,10]
[424858025,1781208648000,-213.9,0.00028068,30]
[424858022,1781208648000,-213.9,0.00027977,30]
[424858020,1781208648000,-78.89649302,0.00027916,2]
[424858030,1781208648000,-221.65,0.00028677,7]
[424858068,1781209709000,-250.0,0.00011165,2]
[424858066,1781209709000,-193.0,0.00011161,2]
[424858065,1781209709000,-150.0,0.0001116,2]
[424858067,1781209709000,-150.0,0.00011162,2]
[424858070,1781209709000,-1927.19169478,0.00011171,2]
[424858073,1781209709000,-300.0,0.0001123,2]
[424858069,1781209709000,-300.0,0.00011171,2]
[424858072,1781209709000,-259.99849942,0.00011189,2]
[424858074,1781209709000,-300.0,0.0001123,2]
[424858075,1781209709000,-295.0,0.00011292,2]
[424858076,1781209709000,-60.98274695,0.00011358,2]
[424858071,1781209709000,-242.53745277,0.00011171,2]
[424858089,1781209831000,-102.66725305,0.00011358,2]
[424858090,1781209831000,-250.0,0.00011395,2]
[424858091,1781209831000,-300.0,0.00011431,2]
[424858092,1781209831000,-163.6139,0.00011505,2]
[424858093,1781209831000,-300.0,0.00011841,2]
[424858095,1781209831000,-300.0,0.00011841,2]
[424858096,1781209831000,-300.0,0.00012057,2]
[424858094,1781209831000,-300.0,0.00011841,2]
[424858099,1781209831000,-449.0,0.00012166,2]
[424858100,1781209831000,-184.94,0.00012179,2]
[424858101,1781209831000,-1031.64978375,0.0001223,2]
[424858102,1781209831000,-5347.29021625,0.0001223,2]
[424858106,1781209831000,-3020.09,0.00012244,2]
[424858105,1781209831000,-9999.99,0.00012243,2]
[424858098,1781209831000,-457.0,0.00012166,2]
[424858109,1781209831000,-150.99,0.00012244,2]
[424858103,1781209831000,-1030.19,0.00012242,2]
[424858097,1781209831000,-791.16,0.00012118,2]
[424858104,1781209831000,-999.99,0.00012242,2]
[424858180,1781209832000,-3200.0,0.00013429,2]
[424858171,1781209832000,-456.0,0.0001318,2]
[424858169,1781209832000,-253.1,0.00013163,2]
[424858182,1781209832000,-166.66,0.00013495,2]
[424858185,1781209832000,-22261.86,0.00013699,2]
[424858184,1781209832000,-1590.28,0.00013699,2]
[424858183,1781209832000,-166.66,0.00013612,2]
[424858174,1781209832000,-443.0,0.0001318,2]
[424858179,1781209832000,-166.66,0.00013342,2]
[424858176,1781209832000,-45073.77,0.00013211,2]
[424858195,1781209832000,-250.0,0.00014,2]
[424858193,1781209832000,-166.66,0.00013881,2]
[424858194,1781209832000,-500.0,0.00013984,2]
[424858197,1781209832000,-166.66,0.00014151,2]
[424858192,1781209832000,-457.0,0.00013787,2]
[424858190,1781209832000,-451.0,0.00013787,2]
[424858191,1781209832000,-457.0,0.00013787,2]
[424858189,1781209832000,-3200.0,0.00013757,2]
[424858187,1781209832000,-500.0,0.0001371,2]
[424858188,1781209832000,-200.0,0.00013755,2]
[424858196,1781209832000,-3200.0,0.00014084,2]
[424858186,1781209832000,-163.68,0.000137,2]
[424858167,1781209832000,-1198.26,0.00013141,2]
[424858154,1781209832000,-4180.8023,0.00013041,2]
[424858163,1781209832000,-1000.0,0.00013126,2]
[424858111,1781209832000,-1981.22,0.00012244,2]
[424858113,1781209832000,-4815.29,0.00012244,2]
[424858116,1781209832000,-299.99,0.00012244,2]
[424858126,1781209832000,-444.0,0.00012407,2]
[424858128,1781209832000,-300.0,0.00012494,2]
[424858133,1781209832000,-379.79,0.00012658,2]
[424858134,1781209832000,-2088.26,0.00012661,2]
[424858136,1781209832000,-2312.34,0.00012729,2]
[424858131,1781209832000,-250.0,0.00012494,2]
[424858118,1781209832000,-250.0,0.00012276,2]
[424858120,1781209832000,-193.0,0.00012276,2]
[424858124,1781209832000,-449.0,0.00012407,2]
[424858122,1781209832000,-210.4,0.00012329,2]
[424858145,1781209832000,-166.66,0.00012803,2]
[424858142,1781209832000,-446.0,0.00012737,2]
[424858148,1781209832000,-1852.42,0.00012838,2]
[424858139,1781209832000,-446.0,0.00012737,2]
[424858159,1781209832000,-166.66,0.00013073,2]
[424858151,1781209832000,-6821.7941,0.00013041,2]
[424858157,1781209832000,-48953.97,0.00013068,2]
[424858161,1781209832000,-3200.0,0.00013102,2]
[424858165,1781209832000,-515.96,0.00013139,2]
[424858199,1781209832000,-312.28,0.00014164,2]
[424858181,1781209832000,-500.0,0.00013436,2]
[424858198,1781209832000,-312.28,0.00014164,2]
[424858222,1781209832000,-357.63429128,0.00016846,2]
[424858228,1781209832000,-500.0,0.00016846,2]
[424858230,1781209832000,-500.0,0.00016846,2]
[424858229,1781209832000,-500.0,0.00016846,2]
[424858236,1781209832000,-500.0,0.00016846,2]
[424858233,1781209832000,-500.0,0.00016846,2]
[424858231,1781209832000,-500.0,0.00016846,2]
[424858232,1781209832000,-500.0,0.00016846,2]
[424858235,1781209832000,-500.0,0.00016846,2]
[424858234,1781209832000,-500.0,0.00016846,2]
[424858238,1781209832000,-500.0,0.00016846,2]
[424858239,1781209832000,-500.0,0.00016846,2]
[424858237,1781209832000,-500.0,0.00016846,2]
[424858241,1781209832000,-557.6503565,0.00016846,2]
[424858242,1781209832000,-500.0,0.00016846,2]
[424858243,1781209832000,-500.0,0.00016846,2]
[424858240,1781209832000,-500.0,0.00016846,2]
[424858244,1781209832000,-500.0,0.00016846,2]
[424858246,1781209832000,-500.0,0.00016846,2]
[424858245,1781209832000,-500.0,0.00016846,2]
[424858200,1781209832000,-300.2,0.00014166,2]
[424858226,1781209832000,-500.0,0.00016846,2]
[424858227,1781209832000,-500.0,0.00016846,2]
[424858247,1781209832000,-500.0,0.00016846,2]
[424858225,1781209832000,-500.0,0.00016846,2]
[424858224,1781209832000,-500.0,0.00016846,2]
[424858201,1781209832000,-184.94,0.00014209,2]
[424858204,1781209832000,-3200.0,0.00014412,2]
[424858203,1781209832000,-500.0,0.00014258,2]
[424858202,1781209832000,-379.79,0.00014241,2]
[424858205,1781209832000,-215.95576085,0.00014778,2]
[424858207,1781209832000,-367.14425541,0.00014782,2]
[424858206,1781209832000,-500.0,0.00014782,2]
[424858208,1781209832000,-1500.0,0.00015247,2]
[424858212,1781209832000,-300.0,0.00016,2]
[424858216,1781209832000,-800.0,0.000167,6]
[424858210,1781209832000,-1555.5,0.00015795,2]
[424858211,1781209832000,-379.79,0.00015823,2]
[424858223,1781209832000,-500.0,0.00016846,2]
[424858219,1781209832000,-500.0,0.00016846,2]
[424858218,1781209832000,-1200.0,0.000168,6]
[424858220,1781209832000,-322.62175646,0.00016846,2]
[424858209,1781209832000,-166.66,0.00015722,2]
[424858221,1781209832000,-500.0,0.00016846,2]
[424858214,1781209832000,-1613.0535,0.00016343,2]
[424858215,1781209832000,-400.0,0.000166,6]
[424858213,1781209832000,-184.94,0.00016239,2]
[424858217,1781209832000,-2000.0,0.00016747,2]
[424858257,1781209833000,-2000.0,0.00016846,2]
[424858250,1781209833000,-500.0,0.00016846,2]
[424858248,1781209833000,-500.0,0.00016846,2]
[424858249,1781209833000,-500.0,0.00016846,2]
[424858251,1781209833000,-500.0,0.00016846,2]
[424858255,1781209833000,-500.0,0.00016846,2]
[424858254,1781209833000,-500.0,0.00016846,2]
[424858253,1781209833000,-500.0,0.00016846,2]
[424858256,1781209833000,-500.0,0.00016846,2]
[424858260,1781209833000,-35646.28555542,0.00016847,2]
[424858252,1781209833000,-500.0,0.00016846,2]
[424858261,1781209833000,-167460.33745466,0.00016847,2]
[424858258,1781209833000,-424010.44013197,0.00016847,2]
[424858262,1781209833000,-260.99829995,0.00016847,2]
[424858263,1781209833000,-5067.4315831,0.00016847,2]
[424858259,1781209833000,-163886.38313652,0.00016847,2]
[424858264,1781209838000,-3339.99999996,0.00016847,2]
[424858265,1781209838000,-315.5,0.00016847,2]
[424858499,1781209840000,-500.0,0.00019152,2]
[424858501,1781209840000,-2005.9555727,0.00019631,2]
[424858507,1781209840000,-165.0,0.0002,2]
[424858511,1781209840000,-151.0,0.00020179,2]
[424858505,1781209840000,-158.0,0.0002,2]
[424858495,1781209840000,-379.79,0.00018988,2]
[424858509,1781209840000,-151.0,0.00020179,2]
[424858513,1781209840000,-151.0,0.00020179,2]
[424858497,1781209840000,-1934.38338736,0.00019083,2]
[424858517,1781209840000,-151.0,0.00020179,2]
[424858503,1781209840000,-504.0,0.00019653,3]
[424858492,1781209840000,-1865.36488656,0.00018535,2]
[424858471,1781209840000,-174.22161554,0.00016864,2]
[424858490,1781209840000,-184.94,0.00018268,2]
[424858476,1781209840000,-1700.0,0.000169,6]
[424858474,1781209840000,-1672.7364795,0.00016891,2]